Cogmind - Beta 9.2 @@@ ROGUE MODE // 2019.11.24 @ 20:17:38 Player: Nalzok Result: Destroyed by G-47 Trooper with Particle Gun Performance ------------- Evolutions (1) 500 Regions Visited (5) 1000 Robots Destroyed (7) 35 Value Destroyed (181) 181 Prototype IDs (24) 480 Alien Tech Used (0) 0 Bonus (300) 300 TOTAL SCORE: 2496 Bonus ------- Aligned with FarCom 300 Cogmind --------- Core Integrity 0/400 Matter 244/300 Energy 100/100 System Corruption 5% Temperature Cool (9) Movement Core (600) Ox11 Location -8/Mines Parts ------- > --- POWER (1) -------- (None) > --- PROPULSION (2) --- (None) > --- UTILITY (4) ------ High-capacity Storage Unit Signal Interpreter > --- WEAPON (2) ------- Rocket Launcher > --- INVENTORY (12) --- Ion Engine Firepult Rocket Launcher Peak State ------------ > --- POWER ------------ Improved Ion Engine > --- PROPULSION ------- Aluminum Leg Aluminum Leg > --- UTILITY ---------- Heat Sink Small Storage Unit Signal Interpreter Weapon Shielding > --- WEAPON ----------- Medium Laser Heavy Assault Rifle > --- INVENTORY -------- Ion Engine Firepult Light Assault Rifle Rocket Launcher Rocket Launcher [Rating: 13] Favorites ----------- Power Improved Ion Engine Engine Improved Ion Engine Propulsion Aluminum Leg Leg Aluminum Leg Utility Heat Sink Device Heat Sink Storage Small Storage Unit Processor Signal Interpreter Protection Weapon Shielding Weapon Heavy Assault Rifle Energy Gun EM Pulse Gun Ballistic Gun Heavy Assault Rifle Launcher Rocket Launcher Build | -11 -10 -9 -9 -9 -8 ------- Run | Scr Mat Mat Min Exi Min Slots Evolved 2 | . . 2 . . . Power . | . . . . . . Propulsion . | . . . . . . Utility 2 | . . 2 . . . Weapon . | . . . . . . Parts Attached 10 | . 2 4 . 2 2 Power 1 | . . 1 . . . Engine 1 | . . 1 . . . Core . | . . . . . . Reactor . | . . . . . . Propulsion . | . . . . . . Treads . | . . . . . . Leg . | . . . . . . Wheel . | . . . . . . Hover . | . . . . . . Flight . | . . . . . . Utility 5 | . 2 2 . 1 . Device 2 | . 1 1 . . . Storage 1 | . . . . 1 . Processor 1 | . 1 . . . . Hackware . | . . . . . . Protection 1 | . . 1 . . . Artifact . | . . . . . . Weapon 4 | . . 1 . 1 2 Energy Gun 1 | . . . . 1 . Energy Cannon . | . . . . . . Ballistic Gun 2 | . . 1 . . 1 Ballistic Cannon . | . . . . . . Launcher 1 | . . . . . 1 Special Weapon . | . . . . . . Impact Weapon . | . . . . . . Slashing Weapon . | . . . . . . Piercing Weapon . | . . . . . . Special Melee Weapon . | . . . . . . Unidentified Prototypes . | . . . . . . Parts Lost 8 | . . . . . 8 Power 1 | . . . . . 1 Propulsion 2 | . . . . . 2 Utility 2 | . . . . . 2 Weapon 3 | . . . . . 3 Highest Loss Streak 8 | . . . . . 8 Average Slot Usage (%) 97 | . 99 96 100 100 50 Engine 11 | . 14 11 11 11 2 Leg 22 | . 28 22 22 22 6 Device 10 | . 10 9 11 11 . Storage 11 | . 14 11 11 11 11 Processor 9 | . 3 11 11 11 11 Protection 8 | . . 9 11 11 6 Energy Gun 14 | . 28 15 11 11 2 Ballistic Gun 8 | . . 6 11 11 11 Naked Turns . | . . . . . . Heaviest Build 46 | 10 11 18 18 46 37 Greatest Support 20 | 20 20 20 20 20 10 Greatest Overweight (x) 3 | . . . . 2 3 Average Overweight (x) . | . . . . . 3 Largest Inventory Capacity 12 | 6 6 6 6 12 12 Average Capacity 7 | 6 6 6 6 9 12 Most Carried 6 | 5 6 6 6 6 6 Average Carried 5 | 4 4 5 6 5 5 Final Capacity 12 | 6 6 6 6 12 12 Final Carried 6 | 2 6 6 6 6 4 Class Distribution -------------------- 100% | Mutant Dominant Class ---------------- Mutant | -10/Materials Mutant | -9/Materials Mutant | -9/Mines Mutant | -9/Exiles Mutant | -8/Mines Resources | -11 -10 -9 -9 -9 -8 ----------- Run | Scr Mat Mat Min Exi Min Matter Collected 336 | 198 12 50 . 20 56 Remotely . | . . . . . . Salvage Created 248 | . 54 84 . . 110 Parts 13 | . 7 4 . . 2 Haulers Intercepted . | . . . . . . Recyclers Shooed . | . . . . . . Parts Field Recycled . | . . . . . . Retrieved Matter . | . . . . . . Parts Self-Destructed . | . . . . . . Prevented . | . . . . . . Kills | -11 -10 -9 -9 -9 -8 ------- Run | Scr Mat Mat Min Exi Min Combat Hostiles Destroyed 6 | . 3 1 . . 2 Guns 6 | . 3 1 . . 2 Classes Destroyed 5 | . 1 2 . . 2 Mechanic 1 | . . 1 . . . Swarmer 3 | . 3 . . . . Grunt 1 | . . . . . 1 Brawler 1 | . . . . . 1 Sentry 1 | . . 1 . . . Best Kill Streak 3 | . 3 1 . . 2 Combat Bots Only 3 | . 3 1 . . 2 Max Kills in Single Turn 1 | . 1 1 . . 1 Gunslinging . | . . . . . . Exploded . | . . . . . . Melee . | . . . . . . Uniques/NPCs Destroyed . | . . . . . . Combat | -11 -10 -9 -9 -9 -8 -------- Run | Scr Mat Mat Min Exi Min Damage Taken 1288 | . 109 89 . . 1090 Core 428 | . 23 . . . 405 Absorbed by Shields . | . . . . . . Core Remaining (%) 95 | 100 90 . . . . Volleys Fired 31 | . 3 6 . . 22 Largest 2 | . 2 2 . . 2 Hottest 80 | . 80 80 . . 73 Shots Fired 50 | . 6 12 . . 32 Gun 45 | . 6 12 . . 27 Cannon . | . . . . . . Launcher 5 | . . . . . 5 Special . | . . . . . . Kinetic 21 | . . . . . 21 Thermal 15 | . 3 6 . . 6 Explosive 5 | . . . . . 5 Electromagnetic 9 | . 3 6 . . . Robot Hit Streak 13 | . 5 13 . . 5 Robot Miss Streak 3 | . . . . . 3 Penetration Max . | . . . . . . Secondary Targets 1 | . . . . . 1 Max Gunslinging Chain 1 | . . . . . 1 Shots Hit Robots 35 | . 5 8 . . 22 Core Hits 13 | . 3 4 . . 6 Critical Hits . | . . . . . . Critical Kills . | . . . . . . Critical Parts Destroyed . | . . . . . . Melee Attacks . | . . . . . . Impact . | . . . . . . Slashing . | . . . . . . Piercing . | . . . . . . Sneak Attacks . | . . . . . . Combat Hostiles . | . . . . . . Follow-up Attacks . | . . . . . . Damage Inflicted 604 | . 55 131 . . 418 Guns 413 | . 55 131 . . 227 Cannons . | . . . . . . Explosions 191 | . . . . . 191 Melee . | . . . . . . Ramming . | . . . . . . Kinetic 189 | . . . . . 189 Thermal 123 | . 21 64 . . 38 Explosive 191 | . . . . . 191 Electromagnetic 101 | . 34 67 . . . Impact . | . . . . . . Slashing . | . . . . . . Piercing . | . . . . . . Highest Corruption 5 | . 2 . . . 5 Average Corruption 2 | . 2 . . . 5 Corruption Purged . | . . . . . . Effects 4 | . . . . . 4 Message Errors 2 | . . . . . 2 Targeting Errors 2 | . . . . . 2 Overload Shots . | . . . . . . Overflow Damage . | . . . . . . Projectiles . | . . . . . . Explosions . | . . . . . . Melee . | . . . . . . Knockbacks . | . . . . . . Impact . | . . . . . . Kinetic . | . . . . . . Secondary . | . . . . . . Self-Inflicted Damage 33 | . . . . . 33 Shots 5 | . . . . . 5 Rammed . | . . . . . . Targets Rammed . | . . . . . . Kicked . | . . . . . . Crushed . | . . . . . . Highest Temperature 97 | . . 2 . . 97 Average Temperature 41 | . . 2 . . 44 Received Heat Transfer 342 | . . 27 . . 315 Siege Activations . | . . . . . . Robots Corrupted . | . . . . . . Combat Hostiles . | . . . . . . Parts Fried . | . . . . . . Impact Corruptions . | . . . . . . Robots Melted . | . . . . . . Combat Hostiles . | . . . . . . Parts Melted . | . . . . . . Heat Transferred 311 | . 50 150 . . 111 Parts Sabotaged . | . . . . . . Parts Stolen . | . . . . . . Parts Stripped . | . . . . . . Power Chain Reactions . | . . . . . . Missiles Intercepted . | . . . . . . Alert | -11 -10 -9 -9 -9 -8 ------- Run | Scr Mat Mat Min Exi Min Peak Influence 81 | . 75 81 31 . 30 Average Influence 46 | . 48 65 31 . 13 Maximum Alert Level . | . . . . . . Low Security (%) 100 | 100 100 100 100 . 100 Level 1 . | . . . . . . Level 2 . | . . . . . . Level 3 . | . . . . . . Level 4 . | . . . . . . Level 5 . | . . . . . . High Security . | . . . . . . Max Security . | . . . . . . Squads Dispatched . | . . . . . . Investigation . | . . . . . . Extermination . | . . . . . . Reinforcement . | . . . . . . Assault . | . . . . . . Garrison . | . . . . . . Intercept . | . . . . . . Construction Impeded . | . . . . . . Haulers Reinforced . | . . . . . . Stealth | -11 -10 -9 -9 -9 -8 --------- Run | Scr Mat Mat Min Exi Min Distress Signals . | . . . . . . Communications Jammed . | . . . . . . Distress Signals . | . . . . . . Times Spotted 9 | . 3 2 . . 4 Peak Tracking Total 4 | . 2 1 . . 4 Tactical Retreats . | . . . . . . Traps | -11 -10 -9 -9 -9 -8 ------- Run | Scr Mat Mat Min Exi Min Traps Triggered 1 | . 1 . . . . Indirectly . | . . . . . . Trap Hack Attempts . | . . . . . . Triggered . | . . . . . . Disarmed . | . . . . . . Reprogrammed . | . . . . . . Reused . | . . . . . . Traps Extracted . | . . . . . . Installed . | . . . . . . Triggered . | . . . . . . Machines | -11 -10 -9 -9 -9 -8 ---------- Run | Scr Mat Mat Min Exi Min Machines Disabled 1 | . . . . . 1 Max in Single Turn 1 | . . . . . 1 Machines Sabotaged . | . . . . . . Garrisons Compromised . | . . . . . . Overloaded Fab Kills . | . . . . . . Fab Network Shutdowns . | . . . . . . Hacking | -11 -10 -9 -9 -9 -8 --------- Run | Scr Mat Mat Min Exi Min Machines Accessed 3 | . 2 . . 1 . Terminals 2 | . 2 . . . . Fabricators . | . . . . . . Repair Stations . | . . . . . . Recycling Units . | . . . . . . Scanalyzers . | . . . . . . Garrison Access . | . . . . . . Total Hacks 5 | . 4 . . 1 . Successful 2 | . 1 . . 1 . Failed 3 | . 3 . . . . Catastrophic 1 | . 1 . . . . Database Lockouts . | . . . . . . Manual 1 | . . . . 1 . Terminals 4 | . 4 . . . . Fabricators . | . . . . . . Repair Stations . | . . . . . . Recycling Units . | . . . . . . Scanalyzers . | . . . . . . Garrison Access . | . . . . . . Terminal Hacks 2 | . 1 . . 1 . Prototype ID Bank 1 | . 1 . . . . EX-Prototype ID Bank 1 | . . . . 1 . Fabricator Hacks . | . . . . . . Repair Station Hacks . | . . . . . . Recycling Unit Hacks . | . . . . . . Scanalyzer . | . . . . . . Garrison Access Hacks . | . . . . . . Unauthorized Hacks . | . . . . . . Terminals . | . . . . . . Fabricators . | . . . . . . Repair Stations . | . . . . . . Recycling Units . | . . . . . . Scanalyzers . | . . . . . . Garrison Access . | . . . . . . Data Cores Recovered . | . . . . . . Used . | . . . . . . Hacking Detections 2 | . 2 . . . . Full Trace Events 1 | . 1 . . . . Feedback Events . | . . . . . . Feedback Blocked . | . . . . . . Robot Schematics Acquired . | . . . . . . Robots Built . | . . . . . . Matter . | . . . . . . Time . | . . . . . . Total Robot Build Rating . | . . . . . . Part Schematics Acquired . | . . . . . . Parts Built . | . . . . . . Matter . | . . . . . . Time . | . . . . . . Total Part Build Rating . | . . . . . . Parts Repaired . | . . . . . . Time . | . . . . . . Parts Recycled . | . . . . . . Recycled Matter . | . . . . . . Retrieved Matter . | . . . . . . Retrieved Components . | . . . . . . Parts Scanalyzed . | . . . . . . Part Schematics Acquired . | . . . . . . Parts Damaged . | . . . . . . Bothacking | -11 -10 -9 -9 -9 -8 ------------ Run | Scr Mat Mat Min Exi Min Used RIF Installer . | . . . . . . Robots Hacked . | . . . . . . Non-combat . | . . . . . . Combat . | . . . . . . Robot Hacks Applied . | . . . . . . Relay Couplers Released . | . . . . . . Robots Rewired . | . . . . . . Allies Hacked . | . . . . . . Hacks Repelled . | . . . . . . Allies | -11 -10 -9 -9 -9 -8 -------- Run | Scr Mat Mat Min Exi Min Total Allies 1 | . . . 1 . . Largest Group 1 | . . . 1 1 . Highest-Rated Group 31 | . . . 31 31 . Highest-Rated Ally 31 | . . . 31 31 . Total Orders 2 | . . . . . 2 GOTO 2 | . . . . . 2 Ally Attacks . | . . . . . . Total Damage . | . . . . . . Kills . | . . . . . . Allies Corrupted . | . . . . . . Allies Melted . | . . . . . . Intel | -11 -10 -9 -9 -9 -8 ------- Run | Scr Mat Mat Min Exi Min Robot Analysis Total . | . . . . . . Derelict Logs Recovered . | . . . . . . Drone Launches 1 | . . . . 1 . Drone Recoveries . | . . . . . . Exploration | -11 -10 -9 -9 -9 -8 ------------- Run | Scr Mat Mat Min Exi Min Turns Passed 1178 | 2 208 194 148 570 56 Spaces Moved 792 | 1 161 139 122 368 1 Core . | . . . . . . Treads . | . . . . . . Legs 792 | 1 161 139 122 368 1 Wheels . | . . . . . . Hover . | . . . . . . Flight . | . . . . . . Fastest Speed 120 | 120 120 120 120 120 210 Average Speed 131 | 120 120 120 120 144 210 Slowest Speed 210 | 120 120 120 120 180 210 Overloaded Moves . | . . . . . . Propulsion Burnouts . | . . . . . . Robots Hopped . | . . . . . . Cave-ins Triggered . | . . . . . . Exploration Rate (%) 25 | 2 37 12 27 66 7 Regions Visited 5 Branch Regions 3 Pre-discovered Areas . | . . . . . . Known Exits Taken 4 | . 1 1 1 1 . Unknown Exits Taken 1 | 1 . . . . . Scrap Searched . | . . . . . . Spaces Dug . | . . . . . . Terrain Destroyed 27 | . . . . . 27 Melee . | . . . . . . Projectile . | . . . . . . AOE 27 | . . . . . 27 Actions | -11 -10 -9 -9 -9 -8 --------- Run | Scr Mat Mat Min Exi Min Total 883 | 4 169 154 123 408 25 Wait 36 | . . . 2 34 . Move 787 | . 160 138 121 367 1 Hop . | . . . . . . Pick Up 7 | . 3 3 . 1 . Fast Attach 3 | . 2 1 . . . Attach 4 | . . 2 . . 2 Detach 1 | . 1 . . . . Swap 3 | . . 1 . 2 . Drop 10 | 4 . 3 . 3 . Fire 31 | . 3 6 . . 22 Melee . | . . . . . . Ram . | . . . . . . Kick . | . . . . . . Crush . | . . . . . . Escape Stasis . | . . . . . . Rewire . | . . . . . . Trap . | . . . . . . Miscellaneous 1 | . . . . 1 . Route ------- -11/Scrapyard -10/Materials -9/Materials -9/Mines -9/Exiles -8/Mines History --------- Turn | Location | Event 3 | -11/Scrapyard | Discovered new exit (range 0) 3 | -11/Scrapyard | Entered Materials 129 | -10/Materials | Discovered new exit (range 3) 207 | -10/Materials | Identified exit to Materials 211 | -10/Materials | Entered another Materials area 211 | -9/Materials | Evolved 2 slots: Utility x2 211 | -9/Materials | Discovered new exit (range 7) 219 | -9/Materials | Identified exit to Mines 311 | -9/Materials | Build established: Mutant 405 | -9/Materials | Entered Mines 510 | -9/Mines | Received a Mining Laser from a helpful Derelict 545 | -9/Mines | Deemed a non-threat by the Exiles lab entrance 546 | -9/Mines | Discovered new exit (range 5) 549 | -9/Mines | Identified exit to Exiles 553 | -9/Mines | Entered Exiles 553 | -9/Exiles | Accompanied by 1 ally 583 | -9/Exiles | Met 8R-AWN 603 | -9/Exiles | Met EX-HEX 639 | -9/Exiles | Met EX-BIN 652 | -9/Exiles | Aligned with FarCom system 653 | -9/Exiles | Given EX-Vault access code 684 | -9/Exiles | Opened EX-Vault 717 | -9/Exiles | Found Firepult 742 | -9/Exiles | Warned to stay clear of 0b10 Research branches 776 | -9/Exiles | Met EX-DEC 858 | -9/Exiles | Discovered new exit (range 10) 873 | -9/Exiles | Identified exit to Mines 1123 | -9/Exiles | Left Exiles lab with Firepult 1123 | -9/Exiles | Entered Mines 1123 | -8/Mines | Accompanied by 1 ally 1162 | -8/Mines | Core integrity fell below 50% 1176 | -8/Mines | Core integrity fell below 20% 1179 | -8/Mines | Destroyed by G-47 Trooper with Particle Gun Last Messages --------------- 01148_ Acquired 4 matter. 01151_ Penetrated by Slug. 01151_ Weapon Shielding destroyed. 01154_ Acquired 4 matter. 01154_ Penetrated by Slug. 01154_ Lgt. Assault Rifle destroyed. 01157_ Acquired 3 matter. 01158_ G-47 Trooper destroyed. 01159_ Acquired 3 matter. 01160_ Penetrated by Slug. 01161_ Acquired 3 matter. 01162_ System corrupted: Hvy. Assault Rifle targeting data glitched. 01163_ Acquired 3 matter. 01165_ 01169_ Hvy. Assault Rifle destroyed. 01171_ Acquired 9 matter. 01175_ Penetrated by Slug. 01177_ The unstable cave ceiling collapses. 01178_ Penetrated by Slug. Map ----- +----------------------------------------------------+ | ????????????????????????????????????????? | | ????????????????????????????????????????? | | ????????????????????????????????????????? | | ????????????????????????????????????????? | | ????????????????????????????????????????? | | ????????????????????????????????????????? | | ????????????????????????????????????????? | | ????????????????????????????????????????? | | ????????????????????????????????????????? | | ????????????????????????????????????????? | | ?????????????????#??????????????????????? | | ???????????????## ??????????????????????? | | ??????????????? ??????????????????????? | | ??????????????? ??????????????????????? | | ??????????????? ??????????????????????? | | ??????????????? ??????????????????????? | | ??????????????? ??????????????????????? | | ???????????????# #??????????????????????? | | ???????????????# #??????????????????????? | | ??????????????## #??????????????????????? | | ??????????????? #??????????????????????? | | ???????????????# ###########????????????? | | ??????????????## ## #????????????? | | ??????????????#n =% g#????????????? | | ??????????????# ## ! #????????????? | | ??????????????# # @ #????????????? | | ??????????????# # #????????????? | | ??????????????# ## % h #????????????? | | ?????????????? # #????????????? | | ??????????????### ##????????????? | | ????????????????## ##?????????????? | | ?????????????????## ##???????????????? | | ?????????????????# ?????????????????? | | ???????????????? ?????????????????? | | ??????????????? ??????????????????? | | ??????????????# ??????????????????? | | ?????????????? ???????????????????? | | ???????????????? ???????????????????? | | ?????????????????? ???????????????????? | | ?????????????????? ???????????????????? | | ?????????????????? ???????????????????? | | ?????????????????? ???????????????????? | | ?????????????????? ???????????????????? | | ?????????????????? ???????????????????? | | ?????????????????? ???????????????????? | | ????????????????????????????????????????? | | ????????????????????????????????????????? | | ????????????????????????????????????????? | | ????????????????????????????????????????? | | ????????????????????????????????????????? | +----------------------------------------------------+ Best States ------------- Heat Dissipation 38 Energy Generation 12 Energy Capacity 265 Matter Stores 300 Matter Capacity 300 Sight Range 16 Terrain Scan Density 10 Weapon Shielding 33 Evasion (%) 40 Item Schematics ----------------- None Robot Schematics ------------------ None Fabricated ------------ Nothing Alien Tech Used ----------------- None Achievements -------------- None Challenges ------------ None Game ------ Seed LongswordPotentialSpear Manual? 0 Play Time 00:08:38 Cumulative 183.8 hours Start 2019.11.24 @ 20:08:55 End 2019.11.24 @ 20:17:38 Sessions 1 Manual Loads 0 Difficulty Rogue Special Mode None Game No. 302 Rogue 302 Adventurer 0 Explorer 0 Win Type - Total 0 Types 0/0/0/0/0/0/0 Lore% 58 Gallery% 73 Achievement% 44 Wizard Run 0 Options --------- ASCII 1 Keyboard 1 Movement Vi Keybinds 0 Fullscreen 1 Font 14/Cog Map View 72x52 Tactical HUD 1 Map Filters NONE Filters LOW_CONTRAST(13,24,33) Steam 0 RUN: 021b45a0-a2bf-42b6-96d9-e806262fd02d